bitfinex-derivatives/quotes_SOLF0:USTF0_20250415
["timestamp","ask_amount","ask_price","bid_price","bid_amount"]
[1744740737227,7.7851,128.46,128.45,0.05372613]
[1744740737628,13.235803,128.48,128.45,0.05372613]
[1744740738124,7.785,128.47,128.45,0.05372613]
[1744740738325,13.235803,128.48,128.45,0.05372613]
[1744740738627,7.7845,128.47,128.45,0.05372613]
[1744740739129,16.22423542,128.47,128.45,0.05372613]
[1744740739630,7.7851,128.46,128.45,0.05372613]
[1744740740632,16.22453542,128.47,128.45,0.05372613]
[1744740740930,0.05735183,128.48,128.41,6.2238]
[1744740740931,8.43973542,128.46,128.41,36.1838]
[1744740741136,16.22723542,128.42,128.41,36.1838]
[1744740741327,8.43973542,128.42,128.41,36.1838]
[1744740741526,8.43973542,128.43,128.41,36.1838]
[1744740741826,16.22693542,128.43,128.41,43.9718]
[1744740742125,16.27928568,128.43,128.41,44.03044001]
[1744740742432,0.05235026,128.43,128.42,7.7875]
[1744740742629,0.05235026,128.43,128.41,36.24244001]
[1744740742927,7.7875,128.42,128.41,36.24244001]
[1744740743128,7.7875,128.42,128.41,30.01864001]
[1744740743630,7.83955026,128.43,128.41,30.01864001]
[1744740743828,7.83955026,128.43,128.41,37.80664001]
[1744740744028,7.83955026,128.43,128.41,30.01864001]
[1744740744230,8.49208568,128.43,128.41,30.01864001]
[1744740744426,7.7875,128.42,128.41,30.01864001]
[1744740744627,0.05235026,128.43,128.41,30.01864001]
[1744740745033,7.83955026,128.43,128.41,37.80654001]
[1744740745432,0.05235026,128.43,128.41,30.01864001]
[1744740745633,0.05235026,128.43,128.41,37.80634001]
[1744740746136,7.7856,128.46,128.44,7.7862]
[1744740746324,7.7856,128.46,128.44,37.7462]
[1744740746734,7.7848,128.47,128.45,7.7856]
[1744740747032,8.43973542,128.48,128.45,7.7856]
[1744740747233,0.05083787,128.47,128.46,16.22483542]
[1744740747430,365.0,128.5,128.46,38.41973542]
[1744740747630,8.43973542,128.51,128.46,38.41973542]
[1744740747631,8.43973542,128.51,128.46,40.39523542]
[1744740747830,16.22283542,128.5,128.46,40.39523542]
[1744740748134,16.22283542,128.5,128.48,7.7838]
[1744740748432,16.28080981,128.5,128.48,7.84234829]
[1744740749135,7.7833,128.49,128.48,0.05854829]
[1744740750336,7.7845,128.47,128.46,29.98]
[1744740751735,20.96408229,128.48,128.46,29.98]
[1744740751935,13.17988229,128.48,128.46,29.98]
[1744740752132,20.96408229,128.48,128.46,29.98]
[1744740753138,7.7836,128.49,128.46,37.7651]
[1744740754440,7.7839,128.48,128.46,37.7651]
[1744740754636,7.7839,128.48,128.46,29.98]
[1744740755243,7.7845,128.47,128.46,29.98]
[1744740755430,3.27541097,128.47,128.45,0.05992539]
[1744740755631,13.17988229,128.46,128.45,0.05992539]
[1744740756436,16.45602196,128.46,128.45,0.05992539]
[1744740756639,24.24112196,128.46,128.45,0.05992539]
[1744740762944,7.7863,128.44,128.43,29.96]
[1744740763638,24.23729809,128.44,128.32,28.76618229]
[1744740763840,13.23586331,128.39,128.37,0.05253585]
[1744740764040,13.23618384,128.39,128.37,0.05497247]
[1744740764541,7.7899,128.38,128.37,0.05497247]
[1744740766144,13.23618384,128.39,128.33,29.96]
[1744740766344,13.17988229,128.36,128.33,29.96]
[1744740766540,13.17988229,128.38,128.33,29.96]
[1744740766738,13.17988229,128.38,128.33,37.7527]
[1744740766939,13.17988229,128.36,128.33,29.96]
[1744740767140,13.23234972,128.36,128.33,37.80778849]
[1744740767545,21.02384972,128.36,128.33,37.80778849]
[1744740768246,0.05246743,128.36,128.34,7.7922]
[1744740768436,0.05246743,128.36,128.33,30.01488849]
[1744740769246,7.7921,128.35,128.33,30.01488849]
[1744740769447,13.23234972,128.36,128.33,30.01488849]
[1744740770046,0.05246743,128.36,128.33,30.01488849]
[1744740770748,7.84376743,128.36,128.33,37.80758849]
[1744740771349,7.84376743,128.36,128.33,7.84758849]
[1744740771548,7.7919,128.35,128.33,37.82758849]
[1744740773748,7.84396743,128.36,128.33,37.82758849]
[1744740773950,0.05246743,128.36,128.33,37.82758849]
[1744740774952,7.84396743,128.36,128.33,37.82758849]
[1744740775253,7.84396743,128.36,128.34,7.7922]
[1744740775453,0.05246743,128.36,128.34,7.7922]
[1744740776455,7.84366743,128.36,128.34,7.7922]
[1744740778759,7.7918,128.35,128.33,37.82758849]
[1744740779859,7.7924,128.34,128.33,30.03488849]
[1744740780060,20.97228229,128.34,128.33,0.05488849]
[1744740780358,13.17988229,128.34,128.3,29.98]
[1744740780558,7.7942,128.31,128.3,29.98]
[1744740780753,13.17988229,128.32,128.27,37.7765]
[1744740780951,7.7951,128.3,128.27,37.7765]
[1744740781150,7.7951,128.3,128.28,7.796]
[1744740781351,0.05905403,128.3,128.28,0.05883674]
[1744740782460,7.7954,128.29,128.28,0.05883674]
[1744740782659,0.05905403,128.3,128.28,0.05883674]
[1744740782859,0.05905403,128.3,128.28,7.85483674]
[1744740783056,7.85395403,128.3,128.28,7.85483674]
[1744740783259,0.05905403,128.3,128.28,0.05883674]
[1744740784063,7.7954,128.29,128.28,0.05883674]
[1744740784262,0.05905403,128.3,128.28,0.05883674]
[1744740784464,365.0,128.35,128.28,0.05883674]
[1744740784659,13.17988229,128.36,128.28,0.05883674]
[1744740784853,13.17988229,128.32,128.27,29.98]
[1744740785060,7.7958,128.29,128.27,29.98]
[1744740785562,7.796,128.28,128.27,30.03013154]
[1744740786967,7.84797012,128.29,128.27,30.03013154]
[1744740787465,0.05227012,128.29,128.27,30.03013154]
[1744740787666,7.794,128.32,128.27,30.03013154]
[1744740787965,7.794,128.32,128.29,7.7951]
[1744740788163,7.7931,128.33,128.3,29.98]
[1744740788664,0.05126569,128.33,128.3,30.03036031]
[1744740788864,7.794,128.32,128.3,30.03036031]
[1744740789266,7.794,128.32,128.3,37.82486031]
[1744740789767,7.794,128.32,128.3,30.03036031]
[1744740790162,7.84456569,128.33,128.3,30.03036031]
[1744740790363,0.05126569,128.33,128.3,37.82476031]
[1744740790867,7.7939,128.32,128.3,37.82476031]
[1744740791068,0.05126569,128.33,128.3,37.82476031]
[1744740792171,7.84456569,128.33,128.3,37.82476031]
[1744740793170,7.7938,128.32,128.3,30.03036031]
[1744740793672,7.7938,128.32,128.3,37.82516031]
[1744740793968,7.84456569,128.33,128.3,37.82516031]
[1744740794972,0.05126569,128.33,128.32,7.7936]
[1744740795769,0.05126569,128.33,128.31,7.7941]
[1744740795970,0.05126569,128.33,128.3,30.03036031]
[1744740796470,7.7939,128.32,128.3,30.03036031]
[1744740796976,7.7939,128.32,128.3,37.82506031]
[1744740798572,0.05126569,128.33,128.32,7.7936]
[1744740798871,13.17988229,128.39,128.31,19.50408229]
[1744740799064,7.791,128.37,128.31,19.50408229]
[1744740799265,365.0,128.4,128.33,13.17988229]
[1744740799573,13.17988229,128.43,128.35,13.17988229]
[1744740799771,0.0545856,128.4,128.38,0.05781801]
[1744740799971,0.0545856,128.4,128.38,30.03781801]
[1744740800271,7.7893,128.39,128.38,30.03781801]
[1744740800470,0.0545856,128.4,128.38,30.03781801]
[1744740801074,0.0545856,128.4,128.38,37.82751801]
[1744740802073,0.0545856,128.4,128.39,7.7893]
[1744740802777,7.7866,128.44,128.41,7.788]
[1744740803167,7.7866,128.44,128.41,29.98]
[1744740803774,7.846149,128.44,128.41,30.03651635]
[1744740803972,0.059549,128.44,128.42,7.7875]
[1744740804174,0.059549,128.44,128.41,30.03651635]
[1744740804772,0.059549,128.44,128.43,7.7869]
[1744740807171,13.17988229,128.49,128.47,7.7844]
[1744740807371,13.17988229,128.49,128.45,29.96]
[1744740807573,13.17988229,128.49,128.46,29.96]
[1744740808077,7.7842,128.48,128.46,29.96]
[1744740808377,13.17988229,128.49,128.46,30.00965839]
[1744740808675,13.17988229,128.47,128.46,30.00965839]
[1744740808875,13.17988229,128.47,128.46,0.04965839]
[1744740809170,34.13976458,128.47,128.4,560.72]
[1744740809376,13.17988229,128.41,128.39,29.96]
[1744740809674,7.7887,128.4,128.39,29.96]
[1744740810670,7.7893,128.39,128.38,0.05097707]
[1744740810871,20.96918229,128.39,128.38,0.05097707]
[1744740811076,21.02552202,128.41,128.38,0.05097707]
[1744740811377,21.02552202,128.41,128.38,7.84087707]
[1744740811572,13.23712202,128.41,128.38,0.05097707]
[1744740811877,7.7893,128.39,128.38,0.05097707]
[1744740812271,20.96918229,128.39,128.38,0.05097707]
[1744740817375,7.7904,128.38,128.36,29.96]
[1744740817576,13.17988229,128.39,128.36,29.96]
[1744740817876,7.7902,128.38,128.36,29.96]
[1744740818280,7.84013738,128.38,128.36,30.00945695]
[1744740820484,0.04993738,128.38,128.36,30.00945695]
[1744740820979,7.84003738,128.38,128.36,30.00945695]
[1744740821184,0.04993738,128.38,128.36,30.00945695]
[1744740821674,13.17988229,128.37,128.33,29.96]
[1744740822075,7.7918,128.35,128.33,29.96]
[1744740822777,7.84608553,128.35,128.33,37.81141795]
[1744740823481,7.84608553,128.35,128.33,30.01851795]
[1744740823679,0.05428553,128.35,128.33,30.01851795]
[1744740824480,0.05428553,128.35,128.34,7.7924]
[1744740826075,7.84608553,128.35,128.33,37.81121795]
[1744740826280,0.05428553,128.35,128.33,37.81121795]
[1744740826676,0.05428553,128.35,128.33,30.01851795]
[1744740827075,7.84638553,128.35,128.33,30.01851795]
[1744740827278,0.05428553,128.35,128.33,30.01851795]
[1744740827779,0.05428553,128.35,128.34,7.7924]
[1744740828581,0.05428553,128.35,128.33,30.01851795]
[1744740829181,0.05428553,128.35,128.33,37.81121795]
[1744740830282,0.05428553,128.35,128.34,7.7924]
[1744740830785,0.05428553,128.35,128.33,37.81121795]
[1744740831584,0.05428553,128.35,128.33,30.01851795]
[1744740832380,0.05428553,128.35,128.33,0.05851795]
[1744740832583,13.17988229,128.34,128.33,0.05851795]
[1744740832785,20.97228229,128.34,128.33,0.05851795]
[1744740833083,7.7924,128.34,128.33,0.05851795]
[1744740834585,7.84658553,128.35,128.33,0.05851795]
[1744740835287,7.7924,128.34,128.33,0.05851795]
[1744740838289,0.05428553,128.35,128.33,30.01851795]
[1744740838889,0.05428553,128.35,128.34,7.7924]
[1744740839285,0.05428553,128.35,128.33,30.01851795]
[1744740839485,13.23416782,128.35,128.33,0.05851795]
[1744740839693,13.23416782,128.35,128.27,29.96]
[1744740839984,7.7942,128.32,128.29,7.7951]
[1744740840495,7.7942,128.31,128.29,7.7951]
[1744740840685,7.7942,128.31,128.29,7.85060683]
[1744740840987,7.7942,128.31,128.29,0.05550683]
[1744740841389,0.05731918,128.32,128.29,0.05550683]
[1744740841590,0.05731918,128.32,128.29,6.40070683]
[1744740841790,0.05731918,128.32,128.3,7.7945]
[1744740841990,7.85121918,128.32,128.3,7.7945]
[1744740842290,7.85121918,128.32,128.29,6.40070683]
[1744740842591,7.7945,128.31,128.29,6.40070683]
[1744740842794,7.7945,128.31,128.29,10.02570683]
[1744740844889,7.7948,128.3,128.29,2.23050683]
[1744740845189,7.7948,128.3,128.29,0.05550683]
[1744740849902,7.797,128.27,128.23,34.1302]
[1744740850103,13.17988229,128.28,128.23,34.1302]
[1744740850299,13.17988229,128.28,128.23,41.9288]
[1744740850604,13.17988229,128.28,128.23,34.1302]
[1744740850898,13.17988229,128.28,128.25,7.7978]
[1744740851097,0.05885978,128.27,128.24,0.05876382]
[1744740851501,0.05885978,128.27,128.24,2.07266382]
[1744740851703,0.05885978,128.27,128.26,7.7972]
[1744740851903,0.05885978,128.27,128.26,37.7572]
[1744740852404,0.05885978,128.27,128.26,29.96]
[1744740852905,0.05885978,128.27,128.26,37.7572]
[1744740853807,0.05885978,128.27,128.26,29.96]
[1744740854197,0.05885978,128.27,128.24,0.05876382]
[1744740854398,7.7976,128.26,128.24,0.05876382]
[1744740854707,0.05885978,128.27,128.24,0.05876382]
[1744740855406,7.7975,128.26,128.24,0.05876382]
[1744740855907,7.7978,128.25,128.24,0.05876382]
[1744740856304,20.97768229,128.25,128.24,0.05876382]
[1744740856506,20.97768229,128.25,128.24,6.382e-05]
[1744740857107,13.17988229,128.25,128.2,29.96]
[1744740857302,13.17988229,128.23,128.2,29.96]
[1744740858001,7.8003,128.21,128.2,29.96]
[1744740858198,7.8003,128.21,128.2,30.01970152]
[1744740859604,7.7999,128.22,128.2,30.01970152]
[1744740859804,0.04979872,128.23,128.2,30.01970152]
[1744740860208,0.04979872,128.23,128.21,7.8]
[1744740860513,0.04979872,128.23,128.2,30.01970152]
[1744740860814,7.84919872,128.23,128.2,37.82030152]
[1744740861112,0.04979872,128.23,128.2,30.01970152]
[1744740861314,0.04979872,128.23,128.22,7.7997]
[1744740869018,0.04979872,128.23,128.2,30.01970152]
[1744740869621,7.84909872,128.23,128.2,37.82010152]
[1744740870418,7.7998,128.22,128.2,37.82010152]
[1744740871616,0.04979872,128.23,128.2,30.01970152]
[1744740872122,0.04979872,128.23,128.22,7.7997]
[1744740872517,13.17988229,128.31,128.24,13.17988229]
[1744740872713,7.7958,128.29,128.26,7.7969]
[1744740872918,7.7958,128.29,128.25,34.0167]
[1744740873420,0.05762314,128.28,128.27,7.7966]
[1744740873620,7.85412314,128.28,128.26,0.05385145]
[1744740875222,7.85412314,128.28,128.26,7.85105145]
[1744740876021,0.05762314,128.28,128.26,7.85105145]
[1744740876522,0.05762314,128.28,128.27,7.7966]
[1744740877419,7.7932,128.33,128.26,13.23373374]
[1744740877625,7.7932,128.33,128.28,13.17988229]
[1744740877822,7.7932,128.33,128.3,7.7945]
[1744740878019,17.38378229,128.36,128.3,37.7745]
[1744740878326,13.23191595,128.34,128.32,0.05208836]
[1744740878823,26.41179824,128.34,128.27,29.98]
[1744740879024,13.17988229,128.31,128.27,29.98]
[1744740879224,7.7949,128.3,128.27,29.98]
[1744740879425,13.17988229,128.31,128.27,29.98]
[1744740879625,13.17988229,128.31,128.27,37.7765]
[1744740879824,0.05998093,128.3,128.28,0.0597346]
[1744740880729,7.7957,128.29,128.28,0.0597346]
[1744740882228,7.85518093,128.3,128.28,0.0597346]
[1744740882529,378.17988229,128.38,128.28,13.23961689]
[1744740882722,3.26651152,128.37,128.28,13.17988229]
[1744740882919,7.7921,128.35,128.32,7.7931]
[1744740883120,378.17988229,128.38,128.33,29.96]
[1744740883326,378.17988229,128.38,128.34,29.96]
[1744740883632,7.7917,128.36,128.35,0.05595698]
[1744740884132,20.97158229,128.36,128.35,0.05595698]
[1744740886526,16.44335393,128.36,128.3,29.96]
[1744740886727,13.17988229,128.34,128.3,29.96]
[1744740887126,7.7942,128.31,128.28,37.7555]
[1744740887331,13.17988229,128.34,128.28,29.96]
[1744740887531,0.05683835,128.32,128.3,0.05743695]
[1744740887733,7.7945,128.31,128.3,0.05743695]
[1744740889133,7.85063835,128.32,128.3,0.05743695]
[1744740889327,0.05683835,128.32,128.31,29.96]
[1744740889830,0.05683835,128.32,128.31,37.7542]
[1744740890032,13.17988229,128.37,128.31,29.96]
[1744740890433,7.7922,128.35,128.31,37.7536]
[1744740890633,13.17988229,128.37,128.31,29.96]
[1744740890833,13.17988229,128.37,128.32,7.7934]
[1744740891029,0.05045981,128.36,128.33,0.05300431]
[1744740891335,7.7923,128.35,128.33,0.05300431]
[1744740891631,0.05045981,128.36,128.33,0.05300431]
[1744740891833,3.31248037,128.36,128.33,0.05300431]
[1744740892025,0.05045981,128.36,128.33,0.05300431]
[1744740892734,7.7924,128.34,128.33,0.05300431]
[1744740896334,0.05045981,128.36,128.33,0.05300431]
[1744740896836,7.7924,128.34,128.33,0.05300431]
[1744740899230,7.792,128.35,128.33,0.05300431]
[1744740899537,0.05045981,128.36,128.33,0.05300431]
[1744740899729,7.7924,128.34,128.33,0.05300431]
[1744740899929,0.05045981,128.36,128.33,0.05300431]
[1744740900338,7.7921,128.35,128.33,0.05300431]
[1744740900531,0.05045981,128.36,128.33,0.05300431]
[1744740900931,7.7921,128.35,128.33,0.05300431]
[1744740901132,0.05045981,128.36,128.33,0.05300431]
[1744740901331,13.17988229,128.35,128.33,0.05300431]
[1744740901535,7.7924,128.34,128.33,0.05300431]
[1744740902736,13.17988229,128.35,128.29,29.94]
[1744740903137,13.17988229,128.35,128.3,7.7947]
[1744740903640,7.794,128.32,128.31,0.05229008]
[1744740907249,7.7933,128.33,128.31,0.05229008]
[1744740907548,0.05448169,128.34,128.31,0.05229008]
[1744740907750,0.05448169,128.34,128.31,7.84639008]
[1744740907943,0.05448169,128.34,128.31,0.05229008]
[1744740908448,7.7936,128.32,128.31,0.05229008]
[1744740909444,7.7932,128.33,128.31,0.05229008]
[1744740909644,7.7932,128.33,128.31,7.84649008]
[1744740909844,0.05448169,128.34,128.31,0.05229008]
[1744740910046,7.7936,128.32,128.31,0.05229008]
[1744740912054,7.7936,128.32,128.31,9.008e-05]
[1744740912353,7.7966,128.27,128.26,29.94]
[1744740915855,7.7972,128.26,128.25,0.05002992]
[1744740916153,13.23207857,128.28,128.25,7.84782992]
[1744740916356,0.05219628,128.28,128.25,7.84782992]
[1744740916559,13.23207857,128.28,128.25,0.05002992]
[1744740918255,7.7972,128.26,128.25,0.05002992]
[1744740918756,20.97708229,128.26,128.25,0.05002992]
[1744740920058,20.97708229,128.26,128.25,2.992e-05]
[1744740920258,46.38185767,128.26,128.18,590.96]
[1744740920454,13.17988229,128.23,128.18,598.7617]
[1744740920856,13.17988229,128.23,128.19,7.8012]
[1744740921357,0.05326893,128.22,128.2,0.05283067]
[1744740921658,7.8006,128.21,128.2,0.05283067]
[1744740922056,0.05326893,128.22,128.2,0.05283067]
[1744740922260,0.05326893,128.22,128.2,7.85343067]
[1744740923859,7.85306893,128.22,128.2,7.85343067]
[1744740924456,7.85306893,128.22,128.2,0.05283067]
[1744740924660,7.8003,128.21,128.2,0.05283067]
[1744740925561,7.85326893,128.22,128.2,0.05283067]
[1744740925760,0.05326893,128.22,128.2,0.05283067]
[1744740925955,0.05326893,128.22,128.21,29.96]
[1744740926158,7.85296893,128.22,128.21,29.96]
[1744740926357,0.05326893,128.22,128.21,29.96]
[1744740927265,7.85296893,128.22,128.21,29.96]
[1744740928168,7.8003,128.21,128.2,0.05283067]
[1744740929360,0.05326893,128.22,128.2,0.05283067]
[1744740929564,0.05326893,128.22,128.21,29.96]
[1744740930167,7.85296893,128.22,128.21,29.96]
[1744740930466,7.8003,128.21,128.2,0.05283067]
[1744740931468,402.76,128.21,128.12,37.7653]
[1744740931662,13.17988229,128.16,128.12,37.7653]
[1744740931967,7.8049,128.14,128.12,37.7653]
[1744740932367,7.8049,128.14,128.12,29.96]
[1744740932566,0.054842,128.14,128.12,30.01922195]
[1744740932865,0.054842,128.14,128.12,37.82472195]
[1744740933669,0.054842,128.14,128.12,30.01922195]
[1744740933872,0.054842,128.14,128.12,0.05922195]
[1744740934260,7.8051,128.13,128.12,0.05922195]
[1744740934460,0.054842,128.14,128.12,0.05922195]
[1744740935866,20.98498229,128.13,128.12,0.05922195]
[1744740936871,7.8051,128.13,128.12,0.05922195]
[1744740947679,13.17988229,128.13,128.06,29.98]
[1744740948081,13.17988229,128.13,128.08,7.8079]
[1744740948277,13.17988229,128.13,128.06,29.98]
[1744740948478,7.8079,128.09,128.08,0.05663815]
[1744740949278,20.98778229,128.09,128.08,0.05663815]
[1744740950681,7.8098,128.06,128.03,37.791]
[1744740951083,13.17988229,128.07,128.03,29.98]
[1744740951279,13.17988229,128.07,128.0,36.4032]
[1744740951678,13.17988229,128.07,128.02,0.05719371]
[1744740951679,0.05272729,128.05,128.02,0.05719371]
[1744740951881,0.05272729,128.05,128.03,29.98]
[1744740952587,0.05272729,128.05,128.02,0.05719371]
[1744740953190,7.86312729,128.05,128.02,7.86879371]
[1744740953489,0.05272729,128.05,128.02,0.05719371]
[1744740953786,7.8109,128.04,128.02,0.05719371]
[1744740954187,0.05272729,128.05,128.02,0.05719371]
[1744740954590,13.17988229,128.04,128.02,0.05719371]
[1744740955186,7.8112,128.03,128.02,0.05719371]
[1744740955989,7.8112,128.03,128.02,9.371e-05]
[1744740956487,56.33976458,128.04,127.97,34.0434]
[1744740956693,13.17988229,128.0,127.94,31.9552]
[1744740957288,13.17988229,128.02,127.94,31.9552]
[1744740957484,13.17988229,128.02,127.95,4.1903]
[1744740957690,7.86583714,127.99,127.97,0.05928848]
[1744740957886,0.05183714,127.99,127.97,0.05928848]
[1744740958287,7.86553714,127.99,127.97,0.05928848]
[1744740958690,0.05183714,127.99,127.97,0.05928848]
[1744740958992,7.86583714,127.99,127.97,0.05928848]
[1744740959391,0.05183714,127.99,127.97,0.05928848]
[1744740959595,7.8143,127.98,127.97,0.05928848]
[1744740960092,20.99418229,127.98,127.97,0.05928848]
[1744740960296,7.8173,127.94,127.91,30.0]
[1744740960497,13.17988229,127.94,127.87,30.0]
[1744740960791,13.17988229,127.92,127.88,1.43591669]
[1744740960996,13.17988229,127.92,127.84,13.17988229]
[1744740961200,13.17988229,127.92,127.86,7.8214]
[1744740961393,0.05334323,127.89,127.87,32.75877783]
[1744740962095,7.87364323,127.89,127.87,32.75877783]
[1744740962291,13.17988229,127.88,127.87,0.05877783]
[1744740962496,7.8204,127.88,127.87,0.05877783]
[1744740962699,0.05334323,127.89,127.87,0.05877783]
[1744740963094,7.87354323,127.89,127.87,0.05877783]
[1744740963295,0.05334323,127.89,127.87,0.05877783]
[1744740963596,378.17988229,128.01,127.88,13.17988229]
[1744740963895,378.17988229,128.01,127.92,13.17988229]
[1744740964092,7.8139,127.99,127.93,34.12]
[1744740964293,13.17988229,128.01,127.93,47.29988229]
[1744740964595,0.05295176,127.98,127.96,0.056097]
[1744740965001,0.05295176,127.98,127.97,34.12]
[1744740965600,13.17988229,128.03,127.98,7.8138]
[1744740965894,7.8122,128.02,127.98,7.8138]
[1744740966098,58.29195229,128.05,128.0,7.8128]
[1744740966301,45.11207,128.05,128.0,7.8128]
[1744740966602,0.0592193,128.04,128.02,7.8114]
[1744740966795,0.0592193,128.04,128.01,34.17752537]
[1744740967297,45.11207,128.05,128.01,34.17752537]
[1744740967599,7.8086,128.08,128.03,7.8108]
[1744740967799,7.8086,128.08,128.01,34.12]
[1744740968197,7.8086,128.08,128.03,7.8112]
[1744740968390,0.05487026,128.06,128.03,0.05726549]
[1744740968792,0.05487026,128.06,128.04,7.8102]
[1744740968998,0.05487026,128.06,128.05,34.12]
[1744740969197,2.1772,128.12,128.05,34.12]
[1744740969401,2.1772,128.12,128.05,41.9298]
[1744740969604,21.23443624,128.09,128.05,34.12]
[1744740969803,21.23443624,128.07,128.02,34.12]
[1744740969993,21.23443624,128.05,128.02,34.12]
[1744740970198,21.28535568,128.05,128.02,0.05691074]
[1744740970707,7.8106,128.04,128.02,0.05691074]
[1744740971001,0.05091944,128.05,128.02,0.05691074]
[1744740971403,7.8112,128.03,128.02,0.05691074]
[1744740972304,7.8131,128.0,127.99,34.12]
[1744740973005,7.8127,128.01,127.99,34.12]
[1744740973408,7.87210388,128.01,127.99,34.17624524]
[1744740973609,7.8131,128.0,127.99,34.17624524]
[1744740974107,7.8131,128.0,127.99,0.05624524]
[1744740976105,0.05940388,128.01,127.99,0.05624524]
[1744740977010,21.23443624,128.0,127.92,34.12]
[1744740977206,21.23443624,127.98,127.92,41.9374]
[1744740977405,21.23443624,127.98,127.92,34.12]
[1744740977602,388.29803624,128.02,127.95,7.8157]
[1744740977801,388.29803624,128.02,127.92,34.12]
[1744740978107,388.29803624,128.02,127.96,0.04916047]
[1744740978108,7.86625844,127.98,127.96,0.04916047]
[1744740978406,0.05165844,127.98,127.96,34.16916047]
[1744740979211,7.8149,127.97,127.96,34.16916047]
[1744740979512,7.8149,127.97,127.96,0.04916047]
[1744740979903,21.28609468,127.98,127.93,34.12]
[1744740980106,21.23443624,127.96,127.93,34.12]
[1744740980312,21.23443624,127.96,127.9,41.9391]
[1744740980512,21.23443624,127.96,127.9,34.12]
[1744740980812,7.8179,127.93,127.9,41.9391]
[1744740981016,7.87435186,127.93,127.9,41.98939333]
[1744740981308,7.87435186,127.93,127.9,34.17029333]
[1744740981611,0.05645186,127.93,127.91,7.8185]
[1744740982011,0.05645186,127.93,127.9,34.17029333]
[1744740982513,21.23443624,127.92,127.9,0.05029333]
[1744740983217,7.8186,127.91,127.9,0.05029333]
[1744740983509,21.23443624,127.92,127.84,34.12]
[1744740983810,21.23443624,127.9,127.84,41.9426]
[1744740984003,21.23443624,127.9,127.84,34.12]
[1744740984200,365.0,127.92,127.84,34.12]
[1744740984201,21.23443624,127.88,127.84,34.12]
[1744740984400,21.23443624,127.9,127.82,2.1357]
[1744740984610,0.05860364,127.87,127.85,0.0547759]
[1744740984809,0.05860364,127.87,127.85,34.1747759]
[1744740985312,0.05860364,127.87,127.86,7.8216]
[1744740986016,23.30873624,127.96,127.86,7.82]
[1744740986218,21.23443624,127.92,127.85,34.12]
[1744740986407,7.8202,127.89,127.86,7.8216]
[1744740986611,7.8202,127.89,127.85,34.12]
[1744740986612,21.23443624,127.92,127.85,34.12]
[1744740986915,0.05067436,127.9,127.87,0.05154193]
[1744740987114,7.8198,127.89,127.87,0.05154193]
[1744740987414,0.05067436,127.9,127.87,0.05154193]
[1744740987715,7.8204,127.88,127.87,0.05154193]
[1744740987914,0.05067436,127.9,127.87,0.05154193]
[1744740988715,7.87027436,127.9,127.87,7.87224193]
[1744740988916,0.05067436,127.9,127.87,0.05154193]
[1744740989411,7.8204,127.88,127.87,0.05154193]
[1744740991115,0.05067436,127.9,127.87,0.05154193]
[1744740991611,0.05067436,127.9,127.89,7.8198]
[1744740991817,0.05067436,127.9,127.89,41.9598]
[1744740992117,2.0743,127.96,127.89,34.14]
[1744740992415,7.817,127.94,127.91,7.8183]
[1744740992915,7.817,127.94,127.91,7.86765501]
[1744740992916,7.8695151,127.94,127.91,7.86765501]
[1744740993114,7.8695151,127.94,127.91,0.04935501]
[1744740993115,0.0525151,127.94,127.91,0.04935501]
[1744740993912,2.0774,128.0,127.91,0.04935501]
[1744740994118,2.0774,128.0,127.72,21.23443624]
[1744740994119,42.46887248,127.92,127.72,21.23443624]
[1744740994322,21.23443624,127.87,127.75,21.23443624]
[1744740994518,21.23443624,127.87,127.76,35.3]
[1744740994818,21.23443624,127.87,127.76,43.1273]
[1744740995116,0.05082307,127.83,127.8,0.05156678]
[1744740995317,0.05082307,127.83,127.81,35.3]
[1744740995721,7.8241,127.82,127.81,35.3]
[1744740995920,0.05082307,127.83,127.8,0.05156678]
[1744740996116,0.05082307,127.83,127.81,35.3]
[1744740996321,59.45913659,127.82,127.67,21.23443624]
[1744740996521,2.1147,127.81,127.68,2.0647]
[1744740996722,21.23443624,127.75,127.59,566.03892701]
[1744740997024,21.23443624,127.75,127.61,21.23443624]
[1744740997221,57.89443624,127.8,127.67,0.05247917]
[1744740997222,0.05660605,127.69,127.67,0.05247917]
[1744740997412,0.0588608,127.69,127.68,36.66]
[1744740998222,0.0588608,127.69,127.67,0.05361107]
[1744740998926,21.29329704,127.69,127.59,566.03892701]